fUST/lending_fUST_20250217
["ID","MTS","AMOUNT","RATE_DAILY","PERIOD"]
[353274297,1739735434046,-500.0,8.219e-05,2]
[353274298,1739735434056,-523.95525576,8.219e-05,2]
[353274299,1739735434066,-500.0,8.219e-05,2]
[353274300,1739735434075,-500.0,8.219e-05,2]
[353274301,1739735434085,-500.0,8.219e-05,2]
[353274302,1739735434095,-500.0,8.219e-05,2]
[353274303,1739735434104,-500.0,8.219e-05,2]
[353274304,1739735434114,-500.0,8.219e-05,2]
[353274305,1739735434124,-390.16312571,8.219e-05,2]
[353274306,1739735434133,-541.21467114,8.219e-05,2]
[353274307,1739735434144,-500.0,8.219e-05,2]
[353274308,1739735434154,-500.0,8.219e-05,2]
[353274309,1739735434164,-983.93,8.219e-05,2]
[353274310,1739735434173,-500.0,8.219e-05,2]
[353274311,1739735434184,-500.0,8.219e-05,2]
[353274312,1739735434194,-500.0,8.219e-05,2]
[353274313,1739735434204,-500.0,8.219e-05,2]
[353274314,1739735434214,-500.0,8.219e-05,2]
[353274315,1739735434224,-500.0,8.219e-05,2]
[353274316,1739735434234,-500.0,8.219e-05,2]
[353274317,1739735434244,-500.0,8.219e-05,2]
[353274318,1739735434254,-500.0,8.219e-05,2]
[353274319,1739735434265,-500.0,8.219e-05,2]
[353274320,1739735434275,-500.0,8.219e-05,2]
[353274321,1739735434285,-500.0,8.219e-05,2]
[353274322,1739735434295,-500.0,8.219e-05,2]
[353274323,1739735434306,-500.0,8.219e-05,2]
[353274324,1739735434316,-500.0,8.219e-05,2]
[353274325,1739735434326,-500.0,8.219e-05,2]
[353274326,1739735434336,-500.0,8.219e-05,2]
[353274327,1739735434346,-488.72,8.219e-05,2]
[353274328,1739735434357,-500.0,8.219e-05,2]
[353274329,1739735434367,-500.0,8.219e-05,2]
[353274330,1739735434377,-500.0,8.219e-05,2]
[353274331,1739735434387,-658.51,8.219e-05,2]
[353274332,1739735434398,-500.0,8.219e-05,2]
[353274333,1739735434408,-500.0,8.219e-05,2]
[353274334,1739735434419,-500.0,8.219e-05,2]
[353274335,1739735434429,-500.0,8.219e-05,2]
[353274336,1739735434438,-500.0,8.219e-05,2]
[353274337,1739735434448,-500.0,8.219e-05,2]
[353274338,1739735434457,-500.0,8.219e-05,2]
[353274339,1739735434466,-500.0,8.219e-05,2]
[353274340,1739735434475,-500.0,8.219e-05,2]
[353274341,1739735434486,-500.0,8.219e-05,2]
[353274342,1739735434496,-500.78565236,8.219e-05,2]
[353274343,1739735434506,-500.0,8.219e-05,2]
[353274344,1739735434517,-500.0,8.219e-05,2]
[353274345,1739735434527,-529.01,8.219e-05,2]
[353274346,1739735434536,-500.0,8.219e-05,2]
[353274347,1739735434546,-527.11547654,8.219e-05,2]
[353274348,1739735434556,-500.0,8.219e-05,2]
[353274349,1739735434565,-500.0,8.219e-05,2]
[353274350,1739735434574,-1899.63,8.219e-05,2]
[353274351,1739735434584,-500.0,8.219e-05,2]
[353274352,1739735434594,-500.0,8.219e-05,2]
[353274353,1739735434605,-500.0,8.219e-05,2]
[353274354,1739735434614,-500.0,8.219e-05,2]
[353274355,1739735434624,-500.0,8.219e-05,2]
[353274356,1739735434634,-500.0,8.219e-05,2]
[353274357,1739735434644,-500.0,8.219e-05,2]
[353274358,1739735434654,-500.0,8.219e-05,2]
[353274359,1739735434663,-500.0,8.219e-05,2]
[353274360,1739735434673,-500.0,8.219e-05,2]
[353274361,1739735434682,-500.0,8.219e-05,2]
[353274362,1739735434692,-582.65,8.219e-05,2]
[353274363,1739735434701,-505.43735776,8.219e-05,2]
[353274364,1739735434710,-500.0,8.219e-05,2]
[353274365,1739735434724,-500.0,8.219e-05,2]
[353274366,1739735434734,-500.0,8.219e-05,2]
[353274367,1739735434743,-500.0,8.219e-05,2]
[353274368,1739735434752,-500.0,8.219e-05,2]
[353274369,1739735434763,-500.0,8.219e-05,2]
[353274370,1739735434772,-500.28032455,8.219e-05,2]
[353274371,1739735434781,-500.0,8.219e-05,2]
[353274372,1739735434790,-507.31321814,8.219e-05,2]
[353274373,1739735434800,-500.0,8.219e-05,2]
[353274374,1739735434810,-500.0,8.219e-05,2]
[353274375,1739735434821,-500.0,8.219e-05,2]
[353274376,1739735434830,-500.0,8.219e-05,2]
[353274377,1739735434839,-500.0,8.219e-05,2]
[353274378,1739735434849,-500.0,8.219e-05,2]
[353274379,1739735434859,-500.0,8.219e-05,2]
[353274380,1739735434869,-216.87386038,8.219e-05,2]
[353274381,1739735434878,-500.0,8.219e-05,2]
[353274382,1739735434888,-500.0,8.219e-05,2]
[353274383,1739735434898,-251.67803932,8.219e-05,2]
[353274384,1739735435069,-248.32196068,8.219e-05,2]
[353274385,1739735435079,-500.0,8.219e-05,2]
[353274386,1739735435089,-500.0,8.219e-05,2]
[353274387,1739735435098,-500.0,8.219e-05,2]
[353274388,1739735435107,-504.69,8.219e-05,2]
[353274389,1739735435117,-500.0,8.219e-05,2]
[353274390,1739735435127,-506.55284044,8.219e-05,2]
[353274391,1739735435137,-500.0,8.219e-05,2]
[353274392,1739735435146,-500.0,8.219e-05,2]
[353274393,1739735435156,-500.0,8.219e-05,2]
[353274394,1739735435166,-500.0,8.219e-05,2]
[353274395,1739735435176,-500.0,8.219e-05,2]
[353274396,1739735435186,-500.0,8.219e-05,2]
[353274397,1739735435196,-500.0,8.219e-05,2]
[353274398,1739735435206,-500.0,8.219e-05,2]
[353274399,1739735435215,-500.0,8.219e-05,2]
[353274400,1739735435224,-500.0,8.219e-05,2]
[353274401,1739735435233,-500.0,8.219e-05,2]
[353274402,1739735435243,-500.0,8.219e-05,2]
[353274403,1739735435253,-500.0,8.219e-05,2]
[353274404,1739735435263,-259.40794356,8.219e-05,2]
[353274405,1739735435273,-500.0,8.219e-05,2]
[353274406,1739735435283,-500.0,8.219e-05,2]
[353274407,1739735435292,-194.66946926,8.219e-05,2]
[353274408,1739735435302,-500.0,8.219e-05,2]
[353274409,1739735435312,-500.0,8.219e-05,2]
[353274410,1739735435322,-500.0,8.219e-05,2]
[353274411,1739735435332,-500.0,8.219e-05,2]
[353274412,1739735435342,-500.0,8.219e-05,2]
[353274413,1739735435351,-615.90051758,8.219e-05,2]
[353274414,1739735435361,-507.36594075,8.219e-05,2]
[353274415,1739735435371,-411.9993984,8.219e-05,2]
[353274416,1739735435381,-500.0,8.219e-05,2]
[353274417,1739735435390,-500.0,8.219e-05,2]
[353274418,1739735435401,-500.0,8.219e-05,2]
[353274419,1739735435409,-500.0,8.219e-05,2]
[353274420,1739735435419,-500.0,8.219e-05,2]
[353274421,1739735435429,-672.8,8.219e-05,2]
[353274422,1739735435438,-500.0,8.219e-05,2]
[353274423,1739735435447,-500.0,8.219e-05,2]
[353274424,1739735435457,-500.0,8.219e-05,2]
[353274425,1739735435466,-500.0,8.219e-05,2]
[353274426,1739735435476,-500.0,8.219e-05,2]
[353274427,1739735435486,-500.0,8.219e-05,2]
[353274428,1739735435496,-500.0,8.219e-05,2]
[353274429,1739735435627,-500.0,8.219e-05,2]
[353274430,1739735435638,-500.0,8.219e-05,2]
[353274431,1739735435648,-26993.11,8.219e-05,2]
[353274432,1739735435658,-1552.18,8.219e-05,2]
[353274433,1739735435668,-500.0,8.219e-05,2]
[353274434,1739735435677,-773.46,8.219e-05,2]
[353274435,1739735435687,-500.0,8.219e-05,2]
[353274436,1739735435696,-500.0,8.219e-05,2]
[353274437,1739735435706,-1194.99,8.219e-05,2]
[353274438,1739735435716,-500.0,8.219e-05,2]
[353274439,1739735435728,-502.92069297,8.219e-05,2]
[353274440,1739735435738,-502.86180634,8.219e-05,2]
[353274441,1739735435748,-894.7,8.219e-05,2]
[353274442,1739735435758,-503.60289075,8.219e-05,2]
[353274443,1739735435769,-504.3178462,8.219e-05,2]
[353274444,1739735435779,-500.0,8.219e-05,2]
[353274445,1739735435788,-623.03,8.219e-05,2]
[353274446,1739735435799,-2605.64,8.219e-05,2]
[353274447,1739735435809,-702.05,8.219e-05,2]
[353274448,1739735435819,-500.98793775,8.219e-05,2]
[353274449,1739735435829,-500.0,8.219e-05,2]
[353274450,1739735435838,-502.49387424,8.219e-05,2]
[353274451,1739735435848,-500.0,8.219e-05,2]
[353274452,1739735435858,-500.0,8.219e-05,2]
[353274453,1739735435868,-5005.81,8.219e-05,2]
[353274454,1739735435878,-1629.41,8.219e-05,2]
[353274455,1739735435888,-1629.41,8.219e-05,2]
[353274456,1739735435898,-1629.41,8.219e-05,2]
[353274457,1739735435907,-1629.41,8.219e-05,2]
[353274458,1739735435916,-1629.41,8.219e-05,2]
[353274459,1739735435926,-500.0,8.219e-05,2]
[353274460,1739735435936,-1629.41,8.219e-05,2]
[353274461,1739735435947,-1629.41,8.219e-05,2]
[353274462,1739735435958,-1629.41,8.219e-05,2]
[353274463,1739735435967,-1629.41,8.219e-05,2]
[353274464,1739735435976,-1629.41,8.219e-05,2]
[353274465,1739735435985,-1629.41,8.219e-05,2]
[353274466,1739735435995,-1629.41,8.219e-05,2]
[353274467,1739735436005,-1629.41,8.219e-05,2]
[353274468,1739735436015,-1629.41,8.219e-05,2]
[353274469,1739735436025,-500.0,8.219e-05,2]
[353274470,1739735436034,-500.0,8.219e-05,2]
[353274471,1739735436044,-504.9395046,8.219e-05,2]
[353274472,1739735436054,-500.0,8.219e-05,2]
[353274473,1739735436063,-385.39539745,8.219e-05,2]
[353274474,1739735436073,-500.0,8.219e-05,2]
[353274475,1739735436082,-500.0,8.219e-05,2]
[353274476,1739735436092,-500.0,8.219e-05,2]
[353274477,1739735436101,-500.0,8.219e-05,2]
[353274478,1739735436111,-500.0,8.219e-05,2]
[353274479,1739735436121,-500.0,8.219e-05,2]
[353274480,1739735436130,-500.0,8.219e-05,2]
[353274481,1739735436140,-500.0,8.219e-05,2]
[353274482,1739735436149,-500.0,8.219e-05,2]
[353274483,1739735436159,-500.0,8.219e-05,2]
[353274484,1739735436170,-500.0,8.219e-05,2]
[353274485,1739735436179,-500.0,8.219e-05,2]
[353274486,1739735436188,-646.45,8.219e-05,2]
[353274487,1739735436197,-500.0,8.219e-05,2]
[353274488,1739735436207,-500.15694389,8.219e-05,2]
[353274489,1739735436216,-2354.94,8.219e-05,2]
[353274490,1739735436225,-500.0,8.219e-05,2]
[353274491,1739735436235,-607.95,8.219e-05,2]
[353274492,1739735436244,-502.48267641,8.219e-05,2]
[353274493,1739735436253,-314.69923021,8.219e-05,2]
[353274494,1739735436262,-500.51122662,8.219e-05,2]
[353274495,1739735436271,-500.0,8.219e-05,2]
[353274496,1739735436281,-1150.56,8.219e-05,2]
[353274497,1739735436290,-500.0,8.219e-05,2]
[353274498,1739735436299,-500.0,8.219e-05,2]
[353274499,1739735436309,-502.24315677,8.219e-05,2]
[353274500,1739735436318,-794.77,8.219e-05,2]
[353274501,1739735436328,-500.0,8.219e-05,2]
[353274502,1739735436337,-500.0,8.219e-05,2]
[353274503,1739735436346,-1453.42,8.219e-05,2]
[353274504,1739735436356,-592.6607841,8.219e-05,2]
[353274505,1739735436366,-500.0,8.219e-05,2]
[353274506,1739735436375,-500.0,8.219e-05,2]
[353274507,1739735436385,-500.0,8.219e-05,2]
[353274508,1739735436394,-500.0,8.219e-05,2]
[353274509,1739735436405,-500.0,8.219e-05,2]
[353274510,1739735436414,-500.0,8.219e-05,2]
[353274511,1739735436423,-500.0,8.219e-05,2]
[353274512,1739735436433,-1526.51,8.219e-05,2]
[353274513,1739735436442,-2147.68,8.219e-05,2]
[353274514,1739735436451,-708.48,8.219e-05,2]
[353274515,1739735436461,-500.0,8.219e-05,2]
[353274516,1739735436470,-500.0,8.219e-05,2]
[353274517,1739735436479,-501.5856704,8.219e-05,2]
[353274518,1739735436489,-500.0,8.219e-05,2]
[353274519,1739735436498,-502.5852276,8.219e-05,2]
[353274520,1739735436507,-1060.52,8.219e-05,2]
[353274521,1739735436517,-500.0,8.219e-05,2]
[353274522,1739735436526,-414.29339293,8.219e-05,2]
[353274523,1739735436535,-1385.07,8.219e-05,2]
[353274524,1739735436545,-500.0,8.219e-05,2]
[353274525,1739735436554,-501.57104446,8.219e-05,2]
[353274526,1739735436564,-500.0,8.219e-05,2]
[353274527,1739735436573,-500.0,8.219e-05,2]
[353274528,1739735436583,-500.0,8.219e-05,2]
[353274529,1739735436592,-12301.32,8.219e-05,2]
[353274530,1739735436602,-500.0,8.219e-05,2]
[353274531,1739735436611,-500.0,8.219e-05,2]
[353274532,1739735436621,-500.0,8.219e-05,2]
[353274533,1739735436631,-500.0,8.219e-05,2]
[353274534,1739735436640,-516.78,8.219e-05,2]
[353274535,1739735436649,-500.0,8.219e-05,2]
[353274536,1739735436659,-1616.63,8.219e-05,2]
[353274537,1739735436668,-502.89192412,8.219e-05,2]
[353274538,1739735436677,-1616.63,8.219e-05,2]
[353274539,1739735436687,-1616.63,8.219e-05,2]
[353274540,1739735436696,-1616.63,8.219e-05,2]
[353274541,1739735436705,-500.0,8.219e-05,2]
[353274542,1739735436715,-1616.63,8.219e-05,2]
[353274543,1739735436727,-1616.63,8.219e-05,2]
[353274544,1739735436736,-1616.63,8.219e-05,2]
[353274545,1739735436746,-1616.63,8.219e-05,2]
[353274546,1739735436755,-1185.78,8.219e-05,2]
[353274547,1739735436765,-1616.63,8.219e-05,2]
[353274548,1739735436775,-1616.63,8.219e-05,2]
[353274549,1739735436784,-1616.63,8.219e-05,2]
[353274550,1739735436793,-500.48946921,8.219e-05,2]
[353274551,1739735436804,-1616.63,8.219e-05,2]
[353274552,1739735436813,-1616.63,8.219e-05,2]
[353274553,1739735436823,-1616.63,8.219e-05,2]
[353274554,1739735436832,-1616.63,8.219e-05,2]
[353274555,1739735436841,-1616.63,8.219e-05,2]
[353274556,1739735436850,-500.0,8.219e-05,2]
[353274557,1739735436860,-500.0,8.219e-05,2]
[353274558,1739735436869,-938.08,8.219e-05,2]
[353274559,1739735436879,-500.0,8.219e-05,2]
[353274560,1739735436888,-500.0,8.219e-05,2]
[353274561,1739735436898,-500.0,8.219e-05,2]
[353274562,1739735436908,-500.0,8.219e-05,2]
[353274563,1739735436917,-500.0,8.219e-05,2]
[353274564,1739735436926,-500.0,8.219e-05,2]
[353274565,1739735436936,-500.0,8.219e-05,2]
[353274566,1739735436944,-3532.24,8.219e-05,2]
[353274567,1739735436953,-500.0,8.219e-05,2]
[353274568,1739735436963,-500.0,8.219e-05,2]
[353274569,1739735436972,-500.0,8.219e-05,2]
[353274570,1739735436981,-537.05,8.219e-05,2]
[353274571,1739735436991,-500.0,8.219e-05,2]
[353274572,1739735437000,-3755.58,8.219e-05,2]
[353274573,1739735437009,-1317.31,8.219e-05,2]
[353274574,1739735437018,-2503.53,8.219e-05,2]
[353274575,1739735437027,-500.0,8.219e-05,2]
[353274576,1739735437037,-500.0,8.219e-05,2]
[353274577,1739735437046,-500.0,8.219e-05,2]
[353274578,1739735437056,-500.0,8.219e-05,2]
[353274579,1739735437066,-500.0,8.219e-05,2]
[353274580,1739735437076,-11476.48,8.219e-05,2]
[353274581,1739735437086,-500.0,8.219e-05,2]
[353274582,1739735437096,-500.0,8.219e-05,2]
[353274583,1739735437106,-2210.95,8.219e-05,2]
[353274584,1739735437115,-500.0,8.219e-05,2]
[353274585,1739735437124,-500.0,8.219e-05,2]
[353274586,1739735437134,-500.0,8.219e-05,2]
[353274587,1739735437144,-500.0,8.219e-05,2]
[353274588,1739735437153,-511.4203264,8.219e-05,2]
[353274589,1739735437163,-500.0,8.219e-05,2]
[353274590,1739735437172,-500.0,8.219e-05,2]
[353274591,1739735437181,-500.0,8.219e-05,2]
[353274592,1739735437191,-1757.88,8.219e-05,2]
[353274593,1739735437201,-500.0,8.219e-05,2]
[353274594,1739735437210,-958.81,8.219e-05,2]
[353274595,1739735437220,-500.0,8.219e-05,2]
[353274596,1739735437230,-500.0,8.219e-05,2]
[353274597,1739735437239,-500.0,8.219e-05,2]
[353274598,1739735437249,-500.0,8.219e-05,2]
[353274599,1739735437258,-500.0,8.219e-05,2]
[353274600,1739735437267,-500.0,8.219e-05,2]
[353274601,1739735437276,-938.2,8.219e-05,2]
[353274602,1739735437285,-500.0,8.219e-05,2]
[353274603,1739735437295,-893.23,8.219e-05,2]
[353274604,1739735437305,-1629.41,8.299e-05,2]
[353274605,1739735437314,-1616.63,8.299e-05,2]
[353274606,1739735437324,-1629.41,8.3e-05,2]
[353274607,1739735437333,-1629.41,8.3e-05,2]
[353274608,1739735437342,-1629.41,8.3e-05,2]
[353274609,1739735437352,-1629.41,8.3e-05,2]
[353274610,1739735437361,-1629.41,8.3e-05,2]
[353274611,1739735437370,-1629.41,8.3e-05,2]
[353274612,1739735437379,-1629.41,8.3e-05,2]
[353274613,1739735437388,-1629.41,8.3e-05,2]
[353274614,1739735437398,-1629.47,8.3e-05,2]
[353274615,1739735437407,-1616.63,8.3e-05,2]
[353274616,1739735437416,-1616.63,8.3e-05,2]
[353274617,1739735437426,-1616.63,8.3e-05,2]
[353274618,1739735437435,-1616.63,8.3e-05,2]
[353274619,1739735437445,-1616.63,8.3e-05,2]
[353274620,1739735437454,-1616.63,8.3e-05,2]
[353274621,1739735437464,-1616.84,8.3e-05,2]
[353274622,1739735437474,-500.0,8.301e-05,2]
[353274623,1739735437483,-500.0,8.301e-05,2]
[353274624,1739735437493,-500.0,8.301e-05,2]
[353274625,1739735437503,-500.0,8.301e-05,2]
[353274626,1739735437512,-500.0,8.301e-05,2]
[353274627,1739735437522,-500.0,8.301e-05,2]
[353274628,1739735437531,-500.0,8.301e-05,2]
[353274629,1739735437541,-500.0,8.301e-05,2]
[353274630,1739735437551,-573.12,8.301e-05,2]
[353274631,1739735437560,-500.0,8.301e-05,2]
[353274632,1739735437569,-500.0,8.301e-05,2]
[353274633,1739735437578,-500.0,8.301e-05,2]
[353274634,1739735437588,-500.0,8.301e-05,2]
[353274635,1739735437597,-500.0,8.301e-05,2]
[353274636,1739735437608,-500.0,8.301e-05,2]
[353274637,1739735437618,-500.0,8.301e-05,2]
[353274638,1739735437627,-669.85,8.301e-05,2]
[353274639,1739735437636,-711.7,8.301e-05,2]
[353274640,1739735437645,-500.0,8.301e-05,2]
[353274641,1739735437655,-500.0,8.301e-05,2]
[353274642,1739735437665,-500.0,8.301e-05,2]
[353274643,1739735437675,-500.0,8.301e-05,2]
[353274644,1739735437684,-983.93,8.301e-05,2]
[353274645,1739735437694,-500.0,8.301e-05,2]
[353274646,1739735437703,-500.0,8.301e-05,2]
[353274647,1739735437712,-500.0,8.301e-05,2]
[353274648,1739735437723,-500.0,8.301e-05,2]
[353274649,1739735437732,-658.51,8.301e-05,2]
[353274650,1739735437838,-500.0,8.301e-05,2]
[353274651,1739735437848,-500.0,8.301e-05,2]
[353274652,1739735437857,-529.01,8.301e-05,2]
[353274653,1739735437867,-500.0,8.301e-05,2]
[353274654,1739735437876,-1899.63,8.301e-05,2]
[353274655,1739735437885,-500.0,8.301e-05,2]
[353274656,1739735437894,-500.0,8.301e-05,2]
[353274657,1739735437904,-500.0,8.301e-05,2]
[353274658,1739735437913,-500.0,8.301e-05,2]
[353274659,1739735437922,-500.0,8.301e-05,2]
[353274660,1739735437931,-504.69,8.301e-05,2]
[353274661,1739735437942,-500.0,8.301e-05,2]
[353274662,1739735437951,-672.8,8.301e-05,2]
[353274663,1739735437960,-500.0,8.301e-05,2]
[353274664,1739735437971,-23781.33757474,8.301e-05,2]
[353274754,1739735440792,-500.0,8.219e-05,2]
[353274756,1739735440802,-3211.77242526,8.301e-05,2]
[353274758,1739735440812,-1552.18,8.301e-05,2]
[353274760,1739735440821,-500.0,8.301e-05,2]
[353274762,1739735440831,-773.46,8.301e-05,2]
[353274764,1739735440841,-1194.99,8.301e-05,2]
[353274766,1739735440850,-894.7,8.301e-05,2]
[353274768,1739735440860,-623.03,8.301e-05,2]
[353274770,1739735440869,-2605.64,8.301e-05,2]
[353274772,1739735440878,-702.05,8.301e-05,2]
[353274774,1739735440887,-5005.81,8.301e-05,2]
[353274776,1739735440897,-500.0,8.301e-05,2]
[353274778,1739735440906,-500.0,8.301e-05,2]
[353274780,1739735440915,-155.07,8.301e-05,2]
[353274782,1739735440926,-500.0,8.301e-05,2]
[353274784,1739735440936,-2354.94,8.301e-05,2]
[353274786,1739735440945,-607.95,8.301e-05,2]
[353274788,1739735440954,-1150.56,8.301e-05,2]
[353274790,1739735440964,-794.77,8.301e-05,2]
[353274792,1739735440976,-500.0,8.301e-05,2]
[353274794,1739735440986,-1453.42,8.301e-05,2]
[353274796,1739735440995,-500.0,8.301e-05,2]
[353274798,1739735441006,-1526.51,8.301e-05,2]
[353274800,1739735441015,-2147.68,8.301e-05,2]
[353274802,1739735441024,-708.48,8.301e-05,2]
[353274804,1739735441034,-500.0,8.301e-05,2]
[353274806,1739735441043,-1060.52,8.301e-05,2]
[353274808,1739735441052,-1385.07,8.301e-05,2]
[353274809,1739735441062,-12301.32,8.301e-05,2]
[353274812,1739735441072,-500.0,8.301e-05,2]
[353274814,1739735441081,-311.76,8.301e-05,2]
[353274816,1739735441091,-500.0,8.301e-05,2]
[353274818,1739735441100,-500.0,8.301e-05,2]
[353274820,1739735441109,-516.78,8.301e-05,2]
[353274822,1739735441119,-1185.78,8.301e-05,2]
[353274824,1739735441128,-938.08,8.301e-05,2]
[353274826,1739735441138,-500.0,8.301e-05,2]
[353274828,1739735441147,-500.0,8.301e-05,2]
[353274830,1739735441157,-500.0,8.301e-05,2]
[353274832,1739735441167,-3532.24,8.301e-05,2]
[353274834,1739735441177,-500.0,8.301e-05,2]
[353274836,1739735441186,-500.0,8.301e-05,2]
[353274838,1739735441196,-500.0,8.301e-05,2]
[353274840,1739735441205,-3755.58,8.301e-05,2]
[353274842,1739735441214,-1317.31,8.301e-05,2]
[353274844,1739735441223,-2503.53,8.301e-05,2]
[353274846,1739735441233,-500.0,8.301e-05,2]
[353274848,1739735441242,-11476.48,8.301e-05,2]
[353274850,1739735441252,-2210.95,8.301e-05,2]
[353274852,1739735441262,-500.0,8.301e-05,2]
[353274854,1739735441271,-1757.88,8.301e-05,2]
[353274856,1739735441281,-958.81,8.301e-05,2]
[353274858,1739735441290,-500.0,8.301e-05,2]
[353274860,1739735441300,-500.0,8.301e-05,2]
[353274862,1739735441309,-938.2,8.301e-05,2]
[353274864,1739735441318,-893.23,8.301e-05,2]
[353274866,1739735441328,-3000.0,8.31e-05,2]
[353274867,1739735441338,-538.0,8.356e-05,2]
[353274869,1739735441348,-1971.0,8.356e-05,2]
[353274871,1739735441358,-2291.0,8.356e-05,2]
[353274873,1739735441367,-276.361,8.356e-05,2]
[353274875,1739735441377,-410.417,8.356e-05,2]
[353274877,1739735441387,-500.0,8.383e-05,2]
[353274879,1739735441396,-500.0,8.383e-05,2]
[353274881,1739735441406,-500.0,8.383e-05,2]
[353274883,1739735441415,-500.0,8.383e-05,2]
[353274885,1739735441425,-500.0,8.383e-05,2]
[353274887,1739735441434,-500.0,8.383e-05,2]
[353274889,1739735441444,-500.0,8.383e-05,2]
[353274890,1739735441454,-208.89385453,8.383e-05,2]
[353274891,1739735441575,-573.12,8.383e-05,2]
[353274892,1739735441585,-500.0,8.383e-05,2]
[353274893,1739735441595,-500.0,8.383e-05,2]
[353274894,1739735441604,-500.0,8.383e-05,2]
[353274895,1739735441614,-500.0,8.383e-05,2]
[353274896,1739735441623,-500.0,8.383e-05,2]
[353274897,1739735441633,-500.0,8.383e-05,2]
[353274898,1739735441643,-500.0,8.383e-05,2]
[353274899,1739735441654,-669.85,8.383e-05,2]
[353274900,1739735441663,-711.7,8.383e-05,2]
[353274901,1739735441673,-500.0,8.383e-05,2]
[353274902,1739735441683,-500.0,8.383e-05,2]
[353274903,1739735441693,-500.0,8.383e-05,2]
[353274904,1739735441703,-500.0,8.383e-05,2]
[353274905,1739735441712,-983.93,8.383e-05,2]
[353274906,1739735441725,-500.0,8.383e-05,2]
[353274907,1739735441735,-500.0,8.383e-05,2]
[353274908,1739735441745,-500.0,8.383e-05,2]
[353274909,1739735441756,-500.0,8.383e-05,2]
[353274910,1739735441767,-658.51,8.383e-05,2]
[353274911,1739735441776,-500.0,8.383e-05,2]
[353274912,1739735441786,-500.0,8.383e-05,2]
[353274913,1739735441796,-529.01,8.383e-05,2]
[353274914,1739735441806,-500.0,8.383e-05,2]
[353274915,1739735441815,-1899.63,8.383e-05,2]
[353274916,1739735441825,-500.0,8.383e-05,2]
[353274917,1739735441834,-500.0,8.383e-05,2]
[353274918,1739735441843,-500.0,8.383e-05,2]
[353274919,1739735441853,-500.0,8.383e-05,2]
[353274920,1739735441862,-500.0,8.383e-05,2]
[353274921,1739735441871,-504.69,8.383e-05,2]
[353274922,1739735441881,-500.0,8.383e-05,2]
[353274923,1739735441891,-672.8,8.383e-05,2]
[353274924,1739735441901,-500.0,8.383e-05,2]
[353274925,1739735441910,-26993.11,8.383e-05,2]
[353274926,1739735441919,-1552.18,8.383e-05,2]
[353274927,1739735441928,-773.46,8.383e-05,2]
[353274928,1739735441937,-299.24892133,8.383e-05,2]
[353274929,1739735441950,-895.74107867,8.383e-05,2]
[353274930,1739735441960,-894.7,8.383e-05,2]
[353274931,1739735441970,-97.75892138,8.383e-05,2]
[353274942,1739735519113,621.5,0.00019,120]
[353274944,1739735727590,500.0,0.00018904,120]
[353275007,1739736631972,-300.0,7.396e-05,2]
[353275010,1739736631986,-6243.1238659,7.397e-05,2]
[353275012,1739736631998,-500.0,7.397e-05,2]
[353275014,1739736632013,-156.18871489,7.397e-05,2]
[353275017,1739736632031,-343.81128511,7.397e-05,2]
[353275019,1739736632044,-500.0,7.397e-05,2]
[353275021,1739736632059,-500.0,7.397e-05,2]
[353275024,1739736632072,-500.0,7.397e-05,2]
[353275026,1739736632087,-500.0,7.397e-05,2]
[353275030,1739736632106,-221.24663161,7.397e-05,2]
[353275033,1739736632119,-638.31062935,8.118e-05,2]
[353275036,1739736632132,-420.0,8.136e-05,2]
[353275038,1739736632145,-168.25078699,8.218e-05,2]
[353275040,1739736632158,-500.0,8.218e-05,2]
[353275043,1739736632173,-500.0,8.218e-05,2]
[353275045,1739736632187,-500.0,8.218e-05,2]
[353275047,1739736632200,-500.0,8.218e-05,2]
[353275049,1739736632211,-500.0,8.218e-05,2]
[353275052,1739736632224,-500.0,8.218e-05,2]